bitfinex/quotes_SOLUSD_20220210
["timestamp","ask_amount","ask_price","bid_price","bid_amount"]
[1644499065689,49.49737768,114.12,114.06,13.151]
[1644499065880,45.11537768,114.12,114.06,13.151]
[1644499069086,46.36332016,114.12,114.06,13.151]
[1644499069284,59.51472016,114.12,114.06,13.151]
[1644499069983,1.24794248,114.11,114.06,13.151]
[1644499070183,43.82610896,114.1,114.06,13.151]
[1644499070584,45.07405144,114.1,114.04,4.382]
[1644499070787,5.63094248,114.09,114.01,4.383]
[1644499070986,38.58125252,114.08,113.99,27.322]
[1644499071187,39.85816837,114.08,113.99,27.322]
[1644499072592,53.01426837,114.08,113.99,27.322]
[1644499072992,1.24794248,114.07,113.99,27.322]
[1644499073193,47.22122149,114.06,113.99,27.322]
[1644499073796,47.22122149,114.06,114.0,13.1575]
[1644499076696,60.37982149,114.06,113.99,4.383]
[1644499076898,4.384,114.05,113.98,23.6249]
[1644499077096,43.38834856,114.04,113.98,23.6249]
[1644499078297,4.385,114.03,113.95,23.0973]
[1644499078495,35.31167658,114.02,113.95,23.0973]
[1644499078696,35.31167658,114.02,113.96,4.386]
[1644499079295,35.31167658,114.02,113.95,23.0973]
[1644499079696,18.79324248,114.05,113.96,13.1622]
[1644499079900,14.40724248,114.05,113.97,4.385]
[1644499080096,13.1593,114.05,113.96,4.385]
[1644499080597,45.64741518,114.04,113.96,4.385]
[1644499080795,45.64741518,114.04,113.98,13.159]
[1644499080796,50.03241518,114.04,113.98,13.159]
[1644499081198,63.19291518,114.04,113.95,71.3466]
[1644499081399,63.19291518,114.04,113.95,66.9616]
[1644499081802,63.19291518,114.04,113.95,71.5976]
[1644499082001,50.03241518,114.04,113.97,13.1608]
[1644499082402,45.64741518,114.04,113.97,13.1608]
[1644499085502,4.41397337,114.06,113.98,4.385]
[1644499085704,4.41397337,114.06,114.0,13.1555]
[1644499085905,1.24794248,114.08,114.0,13.1555]
[1644499085906,13.18487337,114.08,114.0,13.1555]
[1644499086502,34.84325427,114.07,114.0,13.1555]
[1644499086704,39.22725427,114.07,114.0,13.1555]
[1644499087704,52.38465427,114.07,114.0,13.1555]
[1644499087905,48.00065427,114.07,114.0,13.1555]
[1644499088107,49.24859675,114.07,113.98,48.3381]
[1644499088315,18.31294248,114.06,113.96,4.384]
[1644499088507,13.92794248,114.06,113.96,28.8223]
[1644499089708,13.1609,114.04,113.97,13.1605]
[1644499089911,35.77342979,114.03,113.97,13.1605]
[1644499093013,35.77342979,114.03,113.96,4.384]
[1644499093216,4.385,114.02,113.96,4.384]
[1644499093413,13.1645,114.01,113.96,4.384]
[1644499093616,13.1645,114.01,113.93,28.0881]
[1644499094014,22.5986,114.02,113.94,13.1642]
[1644499094215,35.77342979,114.03,113.95,4.386]
[1644499094841,35.77342979,114.03,113.94,4.386]
[1644499095038,35.77342979,114.03,113.95,45.59442371]
[1644499095241,35.77342979,114.03,113.97,13.1606]
[1644499096239,35.77342979,114.03,113.97,13.4106]
[1644499096440,35.77342979,114.03,113.97,14.88902371]
[1644499096839,35.77342979,114.03,113.97,15.13902371]
[1644499097039,17.5441,114.06,113.97,15.13902371]
[1644499097040,4.386,114.06,113.97,15.13902371]
[1644499097241,37.4901,114.07,114.0,13.1562]
[1644499097445,24.3332,114.07,114.0,13.1562]
[1644499097946,34.18444369,114.06,114.0,13.1562]
[1644499098544,24.3332,114.07,114.0,15.13462371]
[1644499098946,1.27691585,114.08,114.0,15.13462371]
[1644499099348,1.27691585,114.08,114.0,14.88462371]
[1644499099546,39.23421301,114.07,114.0,14.88462371]
[1644499099745,39.23421301,114.07,114.0,13.1562]
[1644499100549,40.48215549,114.07,114.0,13.1562]
[1644499100746,5.63194248,114.06,113.99,13.1589]
[1644499101747,18.79044248,114.06,113.99,13.1589]
[1644499102147,14.40644248,114.06,113.99,13.1589]
[1644499102348,1.24794248,114.05,113.99,13.1589]
[1644499102548,4.385,114.04,113.99,13.1589]
[1644499102749,43.33090675,114.03,113.99,13.1589]
[1644499103153,43.33090675,114.03,113.98,13.1598]
[1644499103752,43.33090675,114.03,113.94,4.385]
[1644499103950,4.385,114.02,113.94,22.749]
[1644499104351,5.63294248,114.02,113.94,22.749]
[1644499105152,13.1639,114.01,113.94,35.9129]
[1644499107053,13.1639,114.01,113.91,4.386]
[1644499107256,13.1639,114.01,113.9,47.8385]
[1644499107257,4.386,114.0,113.9,47.8385]
[1644499107452,13.1687,113.97,113.9,47.8385]
[1644499108256,13.1687,113.97,113.9,61.007]
[1644499108455,13.1687,113.97,113.9,13.1685]
[1644499108654,4.388,113.96,113.87,4.388]
[1644499108854,51.17447026,113.95,113.87,4.388]
[1644499109856,51.17447026,113.95,113.88,13.1705]
[1644499112458,38.00287026,113.95,113.88,13.1705]
[1644499112859,38.00287026,113.95,113.88,15.14892371]
[1644499113060,27.6706,114.01,113.88,27.82892371]
[1644499113266,27.6706,114.01,113.92,13.1657]
[1644499113463,13.1665,114.0,113.92,13.1657]
[1644499114159,48.67129042,113.99,113.92,13.1657]
[1644499114761,48.67129042,113.99,113.92,13.4157]
[1644499114961,48.67129042,113.99,113.93,4.386]
[1644499115163,48.67129042,113.99,113.94,13.1635]
[1644499116362,64.9762,114.02,113.94,13.1635]
[1644499116565,4.386,114.03,113.94,13.4135]
[1644499116862,13.1617,114.04,113.97,13.1606]
[1644499117270,42.19303236,114.03,113.97,13.1606]
[1644499117467,46.57803236,114.03,113.97,13.1606]
[1644499118565,42.19303236,114.03,113.97,13.1606]
[1644499119766,46.57803236,114.03,113.97,13.1606]
[1644499119966,46.57803236,114.03,113.95,24.0461]
[1644499119967,46.57803236,114.03,113.96,13.1618]
[1644499120167,42.19303236,114.03,113.95,28.4321]
[1644499121075,42.19303236,114.03,113.97,13.1605]
[1644499121674,4.385,114.02,113.97,13.1605]
[1644499121875,46.57903236,114.03,113.93,17.065]
[1644499122078,42.19303236,114.03,113.96,13.1616]
[1644499122275,4.386,114.02,113.96,13.1616]
[1644499123679,42.19303236,114.03,113.96,13.1616]
[1644499123883,55.35493236,114.03,113.93,43.872]
[1644499124078,4.386,114.02,113.92,64.4304]
[1644499124278,42.19303236,114.03,113.92,64.4304]
[1644499124681,42.19303236,114.03,113.92,51.7504]
[1644499124881,42.19303236,114.03,113.92,52.0004]
[1644499125481,66.23933236,114.03,113.92,52.0004]
[1644499125680,65.73933236,114.03,113.92,52.0004]
[1644499125881,36.84171119,114.01,113.94,13.164]
[1644499126080,41.22771119,114.01,113.94,13.164]
[1644499126683,36.84171119,114.01,113.94,13.164]
[1644499131803,36.84171119,114.01,113.94,17.55]
[1644499134505,4.386,114.02,113.94,17.55]
[1644499134905,24.0463,114.03,113.94,17.55]
[1644499135506,40.97893997,114.02,113.94,42.639]
[1644499135906,40.97893997,114.02,113.94,42.389]
[1644499136806,40.97893997,114.02,113.94,38.003]
[1644499138611,54.14193997,114.02,113.94,38.003]
[1644499140211,55.38988245,114.02,113.94,38.003]
[1644499140413,44.63791916,114.0,113.94,38.003]
[1644499142213,44.63791916,114.0,113.93,17.5515]
[1644499142413,4.386,113.99,113.93,13.1655]
[1644499142613,39.93655091,113.98,113.93,13.1655]
[1644499143013,39.93655091,113.98,113.92,22.958]
[1644499144814,39.93655091,113.98,113.92,36.1247]
[1644499149024,39.93655091,113.98,113.92,13.1667]
[1644499150326,53.10375091,113.98,113.92,13.1667]
[1644499151027,53.10375091,113.98,113.9,4.41]
[1644499151228,38.39414118,113.96,113.89,0.024]
[1644499151427,47.79214118,113.96,113.89,0.024]
[1644499151627,60.96254118,113.96,113.89,0.024]
[1644499152527,36.53289605,113.94,113.89,0.024]
[1644499152727,49.70569605,113.94,113.88,23.8432]
[1644499153332,49.70569605,113.94,113.88,0.024]
[1644499153530,49.70569605,113.94,113.86,13.1979]
[1644499153729,49.70569605,113.94,113.87,0.024]
[1644499154029,49.70569605,113.94,113.86,0.024]
[1644499154837,49.70569605,113.94,113.87,13.1721]
[1644499155035,49.70569605,113.94,113.88,0.024]
[1644499158237,49.70569605,113.94,113.88,13.1955]
[1644499158439,49.70569605,113.94,113.88,13.1715]
[1644499160644,36.53289605,113.94,113.88,13.1715]
[1644499162260,36.53289605,113.94,113.89,4.389]
[1644499162563,36.53289605,113.94,113.89,13.1699]
[1644499164366,36.53289605,113.94,113.89,13.4199]
[1644499164769,36.53289605,113.94,113.89,13.1699]
[1644499165169,36.53289605,113.94,113.88,13.1716]
[1644499167172,13.1707,113.95,113.88,13.1716]
[1644499167373,24.3623,113.96,113.88,15.14527252]
[1644499167569,24.3623,113.96,113.89,17.093]
[1644499167772,24.3623,113.96,113.91,13.1669]
[1644499167970,1.24794248,114.0,113.91,13.1669]
[1644499168171,38.06784473,114.01,113.92,4.386]
[1644499168371,39.27898631,113.99,113.92,71.1188]
[1644499168570,39.27898631,113.99,113.92,71.3688]
[1644499168972,1.24794248,114.02,113.92,71.3688]
[1644499169170,5.63394248,114.02,113.92,71.1188]
[1644499169370,5.63394248,114.02,113.92,71.3688]
[1644499169771,18.79714248,114.02,113.94,13.1632]
[1644499170071,37.1300737,114.01,113.94,13.1632]
[1644499170474,18.79714248,114.02,113.94,13.1632]
[1644499170673,25.09844248,114.03,113.94,41.8327]
[1644499171576,69.30954301,114.03,113.94,41.8327]
[1644499171775,82.47114301,114.03,113.94,41.8327]
[1644499173077,86.85714301,114.03,113.94,37.4467]
[1644499174978,73.69554301,114.03,113.94,37.4467]
[1644499175179,69.30954301,114.03,113.94,37.4467]
[1644499176178,82.47154301,114.03,113.94,37.4467]
[1644499176378,4.386,114.02,113.94,37.4467]
[1644499176580,35.62590874,114.01,113.94,37.4467]
[1644499176779,35.62590874,114.01,113.94,13.1632]
[1644499176981,4.386,114.0,113.94,13.1632]
[1644499177182,39.92802811,113.99,113.93,13.1658]
[1644499183287,39.92802811,113.99,113.93,13.4158]
[1644499184387,39.92802811,113.99,113.93,13.1658]
[1644499184588,39.92802811,113.99,113.93,13.4158]
[1644499186387,39.92802811,113.99,113.93,13.1658]
[1644499186788,39.92802811,113.99,113.92,13.1671]
[1644499186988,4.386,113.98,113.9,0.024]
[1644499187190,37.85263198,113.97,113.9,0.024]
[1644499188889,37.85263198,113.97,113.91,13.1681]
[1644499193694,51.02133198,113.97,113.9,0.024]
[1644499193894,55.40933198,113.97,113.9,13.1934]
[1644499195098,55.40933198,113.97,113.9,0.024]
[1644499195298,56.65727446,113.97,113.9,0.024]
[1644499195498,56.65727446,113.97,113.89,0.024]
[1644499195719,52.26927446,113.97,113.89,0.024]
[1644499195923,45.20748567,113.95,113.87,28.8431]
[1644499196122,45.20748567,113.95,113.89,13.1706]
[1644499199226,58.37818567,113.95,113.89,13.1706]
[1644499200430,45.20748567,113.95,113.89,13.1706]
[1644499200630,36.2113,113.96,113.89,13.1706]
[1644499200830,1.24794248,113.99,113.91,13.1672]
[1644499201035,25.36774248,114.0,113.92,0.024]
[1644499201230,24.1198,114.0,113.91,0.024]
[1644499201431,28.5058,114.0,113.91,0.024]
[1644499201629,36.105496,113.99,113.91,0.024]
[1644499202530,49.271496,113.99,113.92,13.1669]
[1644499202931,49.271496,113.99,113.92,13.1909]
[1644499203230,51.50271754,113.99,113.92,0.024]
[1644499203432,36.63163691,113.97,113.89,23.7536]
[1644499203634,47.23062627,113.95,113.9,13.1928]
[1644499205431,60.40102627,113.95,113.9,13.1928]
[1644499205633,60.40102627,113.95,113.9,0.024]
[1644499205835,60.40102627,113.95,113.89,36.9482]
[1644499206040,70.12802627,113.95,113.89,0.024]
[1644499206337,70.12802627,113.95,113.87,0.024]
[1644499206338,44.32477582,113.93,113.87,0.024]
[1644499206534,13.1744,113.92,113.87,0.024]
[1644499206734,39.57340498,113.91,113.85,0.024]
[1644499206934,39.57340498,113.91,113.85,13.199]
[1644499207440,41.80462652,113.91,113.82,114.3]
[1644499207634,40.24535121,113.89,113.79,23.5906]
[1644499208642,53.42335121,113.89,113.8,13.1792]
[1644499208843,40.24535121,113.89,113.8,13.1792]
[1644499209041,40.24535121,113.89,113.8,37.30649946]
[1644499209236,40.24535121,113.89,113.8,64.55980328]
[1644499209437,40.24535121,113.89,113.81,22.39796566]
[1644499209837,40.24535121,113.89,113.81,0.25]
[1644499210638,40.24535121,113.89,113.81,1.9793338]
[1644499210839,40.24535121,113.89,113.83,13.1743]
[1644499211040,104.0262,113.93,113.83,13.1743]
[1644499211237,104.0262,113.93,113.83,13.4243]
[1644499211640,104.0262,113.93,113.83,13.1743]
[1644499211839,13.1745,113.92,113.83,13.4243]
[1644499212040,40.25007931,113.91,113.83,13.1743]
[1644499212240,40.25007931,113.91,113.83,13.4243]
[1644499212439,40.25007931,113.91,113.83,13.1743]
[1644499213241,40.25007931,113.91,113.83,13.4243]
[1644499213741,53.42567931,113.91,113.83,13.4243]
[1644499213944,53.42567931,113.91,113.83,13.1743]
[1644499215043,53.42567931,113.91,113.83,13.4243]
[1644499215846,53.42567931,113.91,113.83,13.1743]
[1644499216446,36.93986355,113.89,113.83,13.1743]
[1644499216644,36.93986355,113.89,113.81,4.39]
[1644499217047,36.93986355,113.89,113.79,150.5706]
[1644499217346,4.392,113.88,113.79,137.8906]
[1644499217546,39.32669427,113.87,113.79,137.8906]
[1644499218348,62.58189427,113.87,113.77,4.391]
[1644499218548,4.392,113.86,113.76,24.2602]
[1644499218749,37.5890337,113.85,113.76,24.2602]
[1644499218953,37.5890337,113.85,113.77,4.393]
[1644499219151,37.5890337,113.85,113.77,17.073]
[1644499219351,37.5890337,113.85,113.78,13.1816]
[1644499220852,37.5890337,113.85,113.78,13.4316]
[1644499222478,37.5890337,113.85,113.79,0.024]
[1644499222677,37.5890337,113.85,113.79,13.2035]
[1644499224083,10.074,113.87,113.79,13.2035]
[1644499224384,10.074,113.87,113.82,13.1766]
[1644499224980,10.074,113.87,113.82,13.2006]
[1644499225179,44.28402607,113.87,113.82,13.2006]
[1644499226381,10.074,113.87,113.82,13.4506]
[1644499226583,10.074,113.87,113.82,13.2006]
[1644499227182,46.29119691,113.86,113.82,13.2006]
[1644499227783,10.074,113.87,113.82,13.4506]
[1644499228183,10.074,113.87,113.84,13.1749]
[1644499228383,10.074,113.87,113.85,2.08743423]
[1644499228885,45.54043485,113.86,113.85,2.08743423]
[1644499229084,49.51520058,113.86,113.83,0.024]
[1644499229284,48.57043485,113.86,113.81,44.1894]
[1644499229486,48.57043485,113.86,113.82,4.416]
[1644499229684,48.57043485,113.86,113.82,0.024]
[1644499229685,45.54043485,113.86,113.82,0.024]
[1644499229885,45.54043485,113.86,113.82,0.274]
[1644499230287,13.1759,113.91,113.82,0.274]
[1644499230488,18.81404248,113.93,113.83,13.2001]
[1644499230690,1.24794248,113.94,113.84,0.024]
[1644499230889,1.24794248,113.95,113.84,12.704]
[1644499231089,4.39,113.94,113.85,0.024]
[1644499231287,34.60412773,113.93,113.85,0.024]
[1644499231489,34.60412773,113.93,113.86,13.172]
[1644499231689,34.60412773,113.93,113.87,0.024]
[1644499232288,34.60412773,113.93,113.85,0.024]
[1644499232690,47.77732773,113.93,113.85,13.1978]
[1644499232889,47.77732773,113.93,113.86,0.024]
[1644499233491,47.77732773,113.93,113.84,0.024]
[1644499233991,47.77732773,113.93,113.85,13.1741]
[1644499234300,47.77732773,113.93,113.86,0.024]
[1644499235492,4.39,113.92,113.86,0.024]
[1644499235693,40.42650332,113.91,113.85,13.1741]
[1644499235893,40.42650332,113.91,113.85,13.1981]
[1644499236294,40.42650332,113.91,113.85,0.024]
[1644499236896,53.60190332,113.91,113.85,0.024]
[1644499237294,46.48172402,113.89,113.83,0.024]
[1644499237894,46.48172402,113.89,113.82,47.2553]
[1644499238094,46.48172402,113.89,113.82,47.2793]
[1644499238695,46.48172402,113.89,113.82,60.4567]
[1644499239299,57.26972402,113.89,113.82,60.4567]
[1644499240098,70.44742402,113.89,113.82,60.4567]
[1644499246004,57.26972402,113.89,113.82,60.4567]
[1644499246506,57.26972402,113.89,113.82,60.7067]
[1644499246705,57.26972402,113.89,113.82,60.4567]
[1644499247108,57.26972402,113.89,113.82,60.7067]
[1644499248928,57.26972402,113.89,113.82,60.4567]
[1644499250038,70.44712402,113.89,113.82,60.4567]
[1644499252433,74.83812402,113.89,113.82,60.4567]
[1644499253637,70.44712402,113.89,113.82,60.4567]
[1644499256335,59.65912402,113.89,113.82,60.4567]
[1644499257339,64.05012402,113.89,113.82,60.4567]
[1644499257936,64.05012402,113.89,113.82,0.024]
[1644499258137,67.52928804,113.89,113.82,0.024]
[1644499258338,44.47073568,113.86,113.79,0.024]
[1644499258536,1.24794248,113.87,113.79,0.024]
[1644499258537,34.32620807,113.84,113.79,0.024]
[1644499258739,34.32620807,113.84,113.78,24.4164]
[1644499259538,13.1808,113.86,113.78,37.5987]
[1644499259737,49.57514248,113.88,113.79,0.024]
[1644499259937,48.3272,113.88,113.79,0.024]
[1644499260238,48.3272,113.88,113.8,14.4093338]
[1644499260438,48.3272,113.88,113.81,0.024]
[1644499260439,44.32619949,113.88,113.81,0.024]
[1644499260736,44.32619949,113.88,113.82,13.1771]
[1644499260944,44.32619949,113.88,113.82,13.2011]
[1644499261738,44.32619949,113.88,113.82,13.4271]
[1644499261939,44.32619949,113.88,113.82,13.1771]
[1644499262139,44.32619949,113.88,113.82,13.2011]
[1644499263343,57.50439949,113.88,113.82,13.2011]
[1644499263741,57.50439949,113.88,113.82,13.4511]
[1644499263944,44.32619949,113.88,113.82,17.5921]
[1644499265445,44.32619949,113.88,113.82,13.2011]
[1644499265643,44.32619949,113.88,113.82,13.4511]
[1644499266044,44.32619949,113.88,113.82,13.2011]
[1644499266246,44.32619949,113.88,113.82,13.4511]
[1644499269447,44.32619949,113.88,113.82,13.2011]
[1644499276759,57.50439949,113.88,113.82,0.024]
[1644499277256,58.75234197,113.88,113.82,0.024]
[1644499278156,57.29205447,113.86,113.8,0.024]
[1644499278560,42.5709131,113.84,113.78,0.024]
[1644499278759,42.5709131,113.84,113.77,27.2626]
[1644499279160,42.5709131,113.84,113.79,13.1818]
[1644499279464,42.5709131,113.84,113.78,0.024]
[1644499279660,42.5709131,113.84,113.77,27.2626]
[1644499280262,42.5709131,113.84,113.77,27.5126]
[1644499280561,42.5709131,113.84,113.77,27.2626]
[1644499280760,55.7539131,113.84,113.77,40.4466]
[1644499282163,55.7539131,113.84,113.77,36.0536]
[1644499282761,55.7539131,113.84,113.77,36.3036]
[1644499283663,55.7539131,113.84,113.77,36.0536]
[1644499285866,42.5709131,113.84,113.77,36.3036]
[1644499286066,42.5709131,113.84,113.77,36.0536]
[1644499286366,42.5709131,113.84,113.77,36.3036]
[1644499286565,42.5709131,113.84,113.77,36.0536]
[1644499286766,42.5709131,113.84,113.77,36.3036]
[1644499286965,42.5709131,113.84,113.77,36.0536]
[1644499287170,55.7538131,113.84,113.77,36.0536]
[1644499287366,55.7538131,113.84,113.77,0.024]
[1644499287566,36.33250673,113.82,113.77,0.024]
[1644499287765,36.33250673,113.82,113.76,4.393]
[1644499288469,46.08735692,113.8,113.76,4.393]
[1644499289869,59.27745692,113.8,113.76,4.393]
[1644499290269,45.0,113.79,113.74,0.024]
[1644499290467,83.47875692,113.8,113.72,0.024]
[1644499293171,13.193,113.77,113.72,0.024]
[1644499293371,41.16209683,113.76,113.7,46.9989]
[1644499293571,41.16209683,113.76,113.7,46.9749]
[1644499294873,41.16209683,113.76,113.7,60.1664]
[1644499295072,41.16209683,113.76,113.7,64.5624]
[1644499295572,41.16209683,113.76,113.7,66.2917338]
[1644499295777,41.16209683,113.76,113.7,66.5417338]
[1644499295973,4.396,113.81,113.7,66.5417338]
[1644499296272,4.396,113.81,113.71,21.3292056]
[1644499296472,33.9157,113.82,113.74,13.1864]
[1644499296873,36.49457967,113.81,113.74,17.6044]
[1644499297773,49.68167967,113.81,113.74,17.6044]
[1644499298376,49.68167967,113.81,113.74,13.2104]
[1644499302178,49.68167967,113.81,113.74,0.024]
[1644499303481,54.07567967,113.81,113.74,0.024]
[1644499308106,49.68167967,113.81,113.74,0.024]
[1644499311712,49.68167967,113.81,113.74,13.211]
[1644499317320,12.0,113.79,113.7,23.782]
[1644499317517,29.5831,113.79,113.7,25.02487459]
[1644499317718,2.23122154,113.78,113.7,23.782]
[1644499317917,4.394,113.77,113.7,23.782]
[1644499318317,44.83223005,113.76,113.7,23.782]
[1644499318621,58.02573005,113.76,113.68,13.1935]
[1644499319419,58.02573005,113.76,113.66,115.54287459]
[1644499319619,27.6172,113.75,113.66,114.3]
[1644499319818,13.1966,113.73,113.66,114.3]
[1644499320018,35.17639795,113.73,113.67,38.00625895]
[1644499320219,35.17639795,113.73,113.66,114.3]
[1644499320220,35.17639795,113.73,113.68,4.397]
[1644499320419,35.17639795,113.73,113.67,17.5916]
[1644499320819,35.17639795,113.73,113.67,13.1946]
[1644499321319,35.17639795,113.73,113.67,54.61285689]
[1644499321920,36.4141,113.75,113.67,54.61285689]
[1644499322120,5.64494248,113.78,113.7,6.08137601]
[1644499322321,1.24794248,113.78,113.7,31.95227601]
[1644499322522,1.24794248,113.79,113.71,4.394]
[1644499322822,46.93624742,113.8,113.72,35.64875117]
[1644499323021,46.93624742,113.8,113.72,47.20775117]
[1644499323221,45.68830494,113.8,113.72,60.13775117]
[1644499323422,45.68830494,113.8,113.72,73.07655117]
[1644499323922,45.68830494,113.8,113.72,25.8688]
[1644499324124,45.68830494,113.8,113.72,13.1888]
[1644499324322,45.68830494,113.8,113.71,28.3956]
[1644499324323,46.93624742,113.8,113.71,28.3956]
[1644499324530,4.394,113.79,113.71,24.2516]
[1644499324728,17.5836,113.79,113.71,37.1915]
[1644499324928,35.81897234,113.78,113.71,37.1915]
[1644499325129,35.81897234,113.78,113.71,24.0016]
[1644499326628,49.01017234,113.78,113.71,24.0016]
[1644499327329,4.394,113.77,113.71,24.0016]
[1644499327528,44.19448766,113.76,113.71,24.0016]
[1644499327727,44.19448766,113.76,113.7,19.27257601]
[1644499328327,44.19448766,113.76,113.68,60.1506]
[1644499328528,57.38708766,113.76,113.69,13.1923]
[1644499329531,57.38708766,113.76,113.7,40.87767741]
[1644499329730,44.19448766,113.76,113.7,45.27367741]
[1644499330131,44.19448766,113.76,113.7,58.46487741]
[1644499330331,44.19448766,113.76,113.7,13.1912]
[1644499331754,44.19448766,113.76,113.7,43.48794302]
[1644499337157,13.1916,113.77,113.7,43.48794302]
[1644499337359,24.051,113.79,113.7,43.76194302]
[1644499337559,24.6603,113.81,113.73,13.1885]
[1644499337757,24.6603,113.81,113.73,13.4625]
[1644499337958,24.6603,113.81,113.73,17.8565]
[1644499338158,35.80652211,113.8,113.74,44.44939156]
[1644499338359,24.8957,113.82,113.74,44.72339156]
[1644499338561,1.24794248,113.83,113.75,13.1861]
[1644499338759,1.24794248,113.84,113.76,4.394]
[1644499338958,6.88867376,113.87,113.76,4.418]
[1644499338959,1.24794248,113.86,113.76,4.418]
[1644499339160,1.24794248,113.86,113.76,4.668]
[1644499339360,44.33826902,113.85,113.76,37.36181599]
[1644499339561,57.52126902,113.85,113.76,4.668]
[1644499339760,58.7692115,113.85,113.76,4.668]
[1644499339961,4.393,113.84,113.76,0.024]
[1644499340360,5.64094248,113.84,113.75,0.024]
[1644499340560,49.78220743,113.83,113.75,0.024]
[1644499340761,4.394,113.82,113.75,0.024]
[1644499341467,40.99040743,113.83,113.75,0.024]
[1644499342263,13.1876,113.81,113.75,0.024]
[1644499342462,4.394,113.8,113.73,0.024]
[1644499342665,4.394,113.8,113.72,4.418]
[1644499343064,47.46092594,113.79,113.72,4.418]
[1644499343264,60.65102594,113.79,113.72,4.668]
[1644499343465,60.65102594,113.79,113.72,34.48202376]
[1644499343863,60.65102594,113.79,113.72,34.73202376]
[1644499344266,60.65102594,113.79,113.72,34.48202376]
[1644499344466,60.65102594,113.79,113.72,34.73202376]
[1644499344865,60.65102594,113.79,113.72,47.92172376]
[1644499345364,47.46092594,113.79,113.72,47.92172376]
[1644499346567,13.1885,113.8,113.72,47.92172376]
[1644499346770,1.24794248,113.83,113.72,47.92172376]
[1644499346968,5.64194248,113.84,113.76,13.1851]
[1644499347369,5.64194248,113.84,113.74,0.024]
[1644499347567,41.36906095,113.82,113.74,0.024]
[1644499347767,1.24794248,113.83,113.74,0.024]
[1644499347768,45.24194513,113.8,113.74,0.024]
[1644499348168,45.24194513,113.8,113.75,13.1861]
[1644499348969,45.24194513,113.8,113.74,0.024]
[1644499349168,58.43034513,113.8,113.73,13.4389]
[1644499349368,58.43034513,113.8,113.73,13.4629]
[1644499349568,58.43034513,113.8,113.73,0.274]
[1644499350368,58.43034513,113.8,113.73,0.024]
[1644499350568,58.43034513,113.8,113.72,13.2128]
[1644499350771,58.43034513,113.8,113.72,0.024]
[1644499350971,4.394,113.79,113.7,12.704]
[1644499351171,13.1921,113.77,113.71,0.024]
[1644499351576,39.44992346,113.76,113.71,0.024]
[1644499351769,39.44992346,113.76,113.7,13.4413]
[1644499352372,39.44992346,113.76,113.7,13.1913]
[1644499352771,39.44992346,113.76,113.72,13.1899]
[1644499353371,1.24794248,113.8,113.72,13.1899]
[1644499353574,5.64194248,113.81,113.73,0.024]
[1644499353771,4.394,113.81,113.72,13.4639]
[1644499353972,5.64194248,113.81,113.73,0.024]
[1644499354174,13.1884,113.8,113.73,13.2128]
[1644499354372,36.88503332,113.79,113.74,0.024]
[1644499354671,36.88503332,113.79,113.73,36.17922217]
[1644499355073,36.88503332,113.79,113.73,0.25]
[1644499355673,36.88503332,113.79,113.72,0.024]
[1644499355874,36.88503332,113.79,113.72,13.2136]
[1644499355875,50.07433332,113.79,113.72,13.2136]
[1644499356073,1.24794248,113.81,113.72,17.6076]
[1644499356274,47.2592,113.82,113.73,0.024]
[1644499356474,47.2592,113.82,113.74,4.394]
[1644499356675,1.24794248,113.83,113.74,17.098]
[1644499356875,27.0004,113.85,113.75,0.024]
[1644499356876,1.24794248,113.84,113.75,0.024]
[1644499357075,35.78234289,113.82,113.75,55.28479401]
[1644499357277,35.78234289,113.82,113.75,55.53479401]
[1644499357674,35.78234289,113.82,113.75,55.28479401]
[1644499358277,35.78234289,113.82,113.75,55.53479401]
[1644499358679,35.78234289,113.82,113.75,17.8537]
[1644499359078,35.78234289,113.82,113.75,13.4597]
[1644499359778,35.78234289,113.82,113.75,0.274]
[1644499359980,40.78161191,113.8,113.75,0.274]